fUST/lending_fUST_20251231
["ID","MTS","AMOUNT","RATE_DAILY","PERIOD"]
[400112317,1767131446201,-253.69247233,0.00021917,2]
[400112318,1767131446211,-603.73735318,0.00021917,2]
[400112319,1767131446220,-354.67878225,0.00021917,2]
[400112320,1767131446229,-479.73408141,0.00021917,2]
[400112321,1767131446238,-500.0,0.00021917,2]
[400112322,1767131446247,-500.0,0.00021917,2]
[400112323,1767131446257,-161.65920763,0.00021917,2]
[400112324,1767131446266,-249.80248237,0.00021917,2]
[400112325,1767131446275,-363.52764202,0.00021917,2]
[400112326,1767131446285,-322.31792125,0.00021917,2]
[400112327,1767131446295,-610.85708768,0.00021917,2]
[400112328,1767131446304,-492.63956766,0.00021917,2]
[400112329,1767131446313,-408.64927459,0.00021917,2]
[400112330,1767131446323,-446.84088329,0.00021917,2]
[400112331,1767131446332,-500.0,0.00021917,2]
[400112332,1767131446341,-544.01459209,0.00021917,2]
[400112333,1767131446351,-500.0,0.00021917,2]
[400112334,1767131446360,-188.7152254,0.00021917,2]
[400112335,1767131446369,-500.0,0.00021917,2]
[400112336,1767131446379,-300.32782807,0.00021917,2]
[400112337,1767131446388,-500.0,0.00021917,2]
[400112338,1767131446397,-251.740884,0.00021917,2]
[400112339,1767131446407,-464.72692172,0.00021917,2]
[400112340,1767131446416,-500.0,0.00021917,2]
[400112341,1767131446426,-251.740884,0.00021917,2]
[400112342,1767131446435,-416.61031872,0.00021917,2]
[400112343,1767131446445,-251.740884,0.00021917,2]
[400112344,1767131446455,-251.740884,0.00021917,2]
[400112345,1767131446464,-345.01026882,0.00021917,2]
[400112346,1767131446474,-489.54562049,0.00021917,2]
[400112347,1767131446484,-251.740884,0.00021917,2]
[400112348,1767131446494,-251.740884,0.00021917,2]
[400112349,1767131446503,-349.03607023,0.00021917,2]
[400112350,1767131446513,-251.740884,0.00021917,2]
[400112351,1767131446522,-251.740884,0.00021917,2]
[400112352,1767131446532,-288.4165173,0.00021917,2]
[400112353,1767131446542,-484.32908546,0.00021917,2]
[400112354,1767131446552,-500.0,0.00021917,2]
[400112355,1767131446561,-234.9790113,0.00021917,2]
[400112356,1767131446570,-256.42020615,0.00021917,2]
[400112357,1767131446580,-335.91898352,0.00021917,2]
[400112358,1767131446589,-361.11966938,0.00021917,2]
[400112359,1767131446599,-332.84203168,0.00021917,2]
[400112360,1767131446608,-500.0,0.00021917,2]
[400112361,1767131446617,-500.0,0.00021917,2]
[400112362,1767131446627,-500.0,0.00021917,2]
[400112363,1767131446636,-222.40611764,0.00021917,2]
[400112364,1767131446646,-229.74671603,0.00021917,2]
[400112365,1767131446655,-500.0,0.00021917,2]
[400112366,1767131446665,-500.06397758,0.00021917,2]
[400112367,1767131446674,-172.625429,0.00021917,2]
[400112368,1767131446683,-172.625429,0.00021917,2]
[400112369,1767131446692,-172.625429,0.00021917,2]
[400112370,1767131446709,-172.625429,0.00021917,2]
[400112371,1767131446719,-172.625429,0.00021917,2]
[400112372,1767131446728,-172.625429,0.00021917,2]
[400112373,1767131446737,-172.625429,0.00021917,2]
[400112374,1767131446746,-172.625429,0.00021917,2]
[400112375,1767131446755,-1000.52584611,0.00021917,2]
[400112377,1767131446764,-150.0,0.00021918,2]
[400112379,1767131446773,-320.39,0.00022,7]
[400112381,1767131446783,-500.0,0.00022064,2]
[400112383,1767131446792,-500.0,0.00022191,2]
[400112385,1767131446801,-500.0,0.00022191,2]
[400112387,1767131446810,-375.36738615,0.00022191,2]
[400112389,1767131446819,-500.0,0.00022191,2]
[400112391,1767131446828,-500.0,0.00022191,2]
[400112392,1767131446838,-500.0,0.00022191,2]
[400112394,1767131446847,-155.45343671,0.00022191,2]
[400112396,1767131446855,-500.0,0.00022191,2]
[400112398,1767131446865,-500.0,0.00022191,2]
[400112400,1767131446874,-1912.012952,0.00022191,2]
[400112403,1767131446884,-500.0,0.00022191,2]
[400112404,1767131446893,-814.003232,0.00022191,2]
[400112406,1767131446902,-814.003232,0.00022191,2]
[400112408,1767131446911,-1912.012951,0.00022191,2]
[400112410,1767131446920,-814.003232,0.00022191,2]
[400112412,1767131446930,-814.003232,0.00022191,2]
[400112414,1767131446939,-151.0,0.00022191,2]
[400112416,1767131446948,-151.0,0.00022191,2]
[400112418,1767131446958,-151.0,0.00022191,2]
[400112420,1767131446971,-151.0,0.00022191,2]
[400112422,1767131446979,-500.0,0.00022191,2]
[400112424,1767131446989,-500.0,0.00022191,2]
[400112426,1767131446998,-500.0,0.00022191,2]
[400112428,1767131447009,-500.0,0.00022191,2]
[400112430,1767131447019,-500.0,0.00022191,2]
[400112432,1767131447028,-500.0,0.00022191,2]
[400112434,1767131447038,-500.0,0.00022191,2]
[400112436,1767131447047,-557.4,0.00022191,2]
[400112438,1767131447056,-598.56632729,0.00022191,2]
[400112440,1767131447065,-500.0,0.00022191,2]
[400112442,1767131447075,-500.0,0.00022191,2]
[400112444,1767131447084,-500.0,0.00022191,2]
[400112446,1767131447093,-500.0,0.00022191,2]
[400112448,1767131447102,-500.0,0.00022191,2]
[400112449,1767131447112,-500.0,0.00022191,2]
[400112451,1767131447121,-500.0,0.00022191,2]
[400112453,1767131447130,-498.64088611,0.00022191,2]
[400112456,1767131447144,-500.0,0.00022191,2]
[400112458,1767131447156,-334.09310388,0.00022378,2]
[400112460,1767131447165,-601.36758699,0.00022378,2]
[400112461,1767131447175,-1069.09793243,0.00022378,2]
[400112463,1767131447184,-1670.46551942,0.00022378,2]
[400112466,1767131447194,-2405.47034796,0.00022378,2]
[400112467,1767131447203,-3274.11241806,0.00022378,2]
[400112470,1767131447213,-588.47770235,0.00022465,2]
[400112471,1767131447222,-500.0,0.00022465,2]
[400112473,1767131447231,-500.0,0.00022465,2]
[400112475,1767131447241,-500.0,0.00022465,2]
[400112477,1767131447250,-500.0,0.00022465,2]
[400112479,1767131447259,-276.27291164,0.00022465,2]
[400112482,1767131447272,-223.72708836,0.00022465,2]
[400112484,1767131447281,-500.0,0.00022465,2]
[400112485,1767131447292,-500.0,0.00022465,2]
[400112487,1767131447301,-500.0,0.00022465,2]
[400112489,1767131447310,-500.0,0.00022465,2]
[400112491,1767131447326,-500.0,0.00022465,2]
[400112494,1767131447347,-500.0,0.00022465,2]
[400112495,1767131447363,-500.0,0.00022465,2]
[400112497,1767131447372,-500.0,0.00022465,2]
[400112499,1767131447382,-533.74259937,0.00022465,2]
[400112501,1767131447391,-300.0,0.00022466,2]
[400112503,1767131447400,-500.0,0.00022739,2]
[400112505,1767131447409,-500.0,0.00022739,2]
[400112507,1767131447418,-500.0,0.00022739,2]
[400112509,1767131447428,-500.0,0.00022739,2]
[400112511,1767131447438,-500.0,0.00022739,2]
[400112513,1767131447449,-500.0,0.00022739,2]
[400112515,1767131447458,-500.0,0.00022739,2]
[400112517,1767131447468,-513.16,0.00022739,2]
[400112519,1767131447477,-500.0,0.00022739,2]
[400112521,1767131447486,-500.0,0.00022739,2]
[400112523,1767131447496,-1078.00643874,0.000228,2]
[400112525,1767131447506,-10594.36387334,0.00022854,2]
[400113524,1767131592341,150.0,0.00012765,2]
[400113525,1767131606750,160.31,0.00012329,2]
[400113526,1767131617347,480.62,0.00012329,2]
[400113527,1767131627881,453.29,0.00012329,2]
[400113528,1767131638599,377.75,0.00012329,2]
[400113529,1767131649041,314.79,0.00012329,2]
[400113530,1767131657658,457.32,0.00012397,2]
[400113531,1767131659779,262.32,0.00012329,2]
[400113532,1767131670206,218.6,0.00012329,2]
[400113533,1767131680689,182.17,0.00012329,2]
[400113534,1767131691130,151.81,0.00012329,2]
[400113535,1767131701619,759.06,0.00012329,2]
[400113536,1767131737631,451.5,0.00012301,2]
[400113537,1767131739912,-453.07415164,0.00012887,2]
[400113538,1767131741445,-207.30691018,0.00012887,2]
[400113539,1767131743474,-200.13631066,0.00012887,2]
[400113540,1767131817721,434.8,0.00012332,2]
[400113541,1767131829922,-190.46,0.00012919,2]
[400113542,1767131832657,-287.95484601,0.00012919,2]
[400113543,1767131839849,4756.22346415,0.00012771,2]
[400113544,1767131896763,425.6,0.00012327,2]
[400113545,1767131947229,150.0,0.00028767,120]
[400113546,1767131975800,420.18,0.00012385,2]
[400113547,1767132055653,414.84,0.00012352,2]
[400113549,1767132135887,409.56,0.00012336,2]
[400113550,1767132215544,404.34,0.00012309,2]
[400113551,1767132226204,200.0,0.0002862,120]
[400113552,1767132228997,200.0,0.0002862,120]
[400113553,1767132231066,200.0,0.0002862,120]
[400113554,1767132295941,399.2,0.0001229,2]
[400113560,1767132376275,394.12,0.00012292,2]
[400113583,1767132455524,389.1,0.00012318,2]
[400113586,1767132480178,161.98,8.991e-05,2]
[400113587,1767132480528,161.98,8.991e-05,2]
[400113588,1767132535130,384.15,0.00012301,2]
[400113589,1767132549981,-768.3,0.00012886,2]
[400113590,1767132550003,-200.28977095,0.00012917,2]
[400113591,1767132550024,-604.0,0.00012974,2]
[400113592,1767132550044,-300.0,0.00013169,2]
[400113593,1767132550064,-300.0,0.0001317,2]
[400113594,1767132550084,-300.0,0.0001317,2]
[400113595,1767132550103,-1200.0,0.0001317,2]
[400113596,1767132550123,-1200.0,0.0001317,2]
[400113597,1767132550143,-300.0,0.00013171,2]
[400113598,1767132550163,-516.86051454,0.00013268,2]
[400113599,1767132550763,-258.89390168,0.00013268,2]
[400113600,1767132550785,-573.47755831,0.00013268,2]
[400113601,1767132550804,-154.28699706,0.00013268,2]
[400113602,1767132550825,-500.0,0.00013268,2]
[400113603,1767132550845,-500.0,0.00013268,2]
[400113604,1767132550866,-500.0,0.00013268,2]
[400113605,1767132550887,-500.0,0.00013268,2]
[400113606,1767132550909,-500.0,0.00013268,2]
[400113607,1767132550931,-500.0,0.00013268,2]
[400113608,1767132550952,-222.49173982,0.00013268,2]
[400113609,1767132550972,-500.0,0.00013268,2]
[400113610,1767132550992,-500.0,0.00013268,2]
[400113611,1767132551011,-501.81351208,0.00013268,2]
[400113612,1767132551032,-243.16613064,0.00013268,2]
[400113613,1767132551051,-500.0,0.00013268,2]
[400113614,1767132551071,-356.34706006,0.00013268,2]
[400113615,1767132565137,250.0,0.00028767,120]
[400113619,1767132614612,369.48,0.00012451,2]
[400113645,1767132631884,-738.96,0.00013044,2]
[400113647,1767132631894,-261.04,0.00013168,2]
[400113660,1767132632028,-38.96,0.00013168,2]
[400113661,1767132632038,-300.0,0.00013168,2]
[400113664,1767132632047,-607.0,0.00013168,2]
[400113667,1767132632056,-300.0,0.00013168,2]
[400113670,1767132632065,-1200.0,0.00013168,2]
[400113673,1767132632074,-9133.32457944,0.00013168,2]
[400113676,1767132632083,-2320.71542056,0.00013169,2]
[400113679,1767132632095,-632.1633785,0.00013169,2]
[400114251,1767132637960,-321.7398901,0.00013169,2]
[400114253,1767132637971,-147765.53498191,0.00013169,2]
[400114259,1767132638017,-4023.56816462,0.00013169,2]
[400114261,1767132638028,-844936.27816431,0.00013169,2]
[400114263,1767132638038,-999.24742259,0.00013268,2]
[400114265,1767132638047,-50000.0,0.00013268,2]
[400114267,1767132638056,-143.65293994,0.00013268,2]
[400114269,1767132638066,-500.0,0.00013268,2]
[400114271,1767132638075,-500.0,0.00013268,2]
[400114274,1767132638084,-500.0,0.00013268,2]
[400114277,1767132638093,-500.0,0.00013268,2]
[400114280,1767132638103,-156.99685951,0.00013268,2]
[400114283,1767132638112,-500.0,0.00013268,2]
[400114285,1767132638121,-500.0,0.00013268,2]
[400114287,1767132638131,-500.0,0.00013268,2]
[400114289,1767132638140,-500.0,0.00013268,2]
[400114291,1767132638149,-500.0,0.00013268,2]
[400114293,1767132638159,-500.0,0.00013271,2]
[400114295,1767132638168,-1851.31937146,0.00013271,2]
[400114297,1767132638178,-624.8404065,0.00013271,2]
[400114299,1767132638187,-1851.31937146,0.00013271,2]
[400114301,1767132638196,-500.0,0.00013271,2]
[400114303,1767132638207,-1851.31937146,0.00013271,2]
[400114305,1767132638216,-1851.31937146,0.00013271,2]
[400114307,1767132638225,-280.33883041,0.00013271,2]
[400114309,1767132638234,-1851.31937146,0.00013271,2]
[400114311,1767132638243,-500.0,0.00013271,2]
[400114313,1767132638253,-1851.31937146,0.00013271,2]
[400114315,1767132638262,-1851.31937146,0.00013271,2]
[400114317,1767132638271,-1851.31937146,0.00013271,2]
[400114319,1767132638281,-1851.31937146,0.00013271,2]
[400114321,1767132638290,-1851.31937146,0.00013271,2]
[400114323,1767132638300,-1851.31937146,0.00013271,2]
[400114325,1767132638309,-1874.46086361,0.00013271,2]
[400114327,1767132638319,-1874.46086361,0.00013271,2]
[400114329,1767132638329,-1874.46086361,0.00013271,2]
[400114331,1767132638338,-1874.46086361,0.00013271,2]
[400114333,1767132638347,-1874.46086361,0.00013271,2]
[400114335,1767132638357,-1874.46086361,0.00013271,2]
[400114337,1767132638366,-1874.46086361,0.00013271,2]
[400114339,1767132638376,-1874.46086361,0.00013271,2]
[400114341,1767132638386,-1874.46086361,0.00013271,2]
[400114343,1767132638396,-2113.20798414,0.00013271,2]
[400114345,1767132638405,-2113.20798414,0.00013271,2]
[400114347,1767132638415,-2113.20798414,0.00013271,2]
[400114349,1767132638424,-2113.20798414,0.00013271,2]
[400114351,1767132638434,-2113.20798414,0.00013271,2]
[400114353,1767132638444,-205.882,0.00013271,2]
[400114355,1767132638453,-500.0,0.00013273,2]
[400114357,1767132638463,-217.77534712,0.00013273,2]
[400114359,1767132638472,-283.15409111,0.00013273,2]
[400114361,1767132638481,-500.0,0.00013273,2]
[400114363,1767132638491,-500.0,0.00013273,2]
[400114365,1767132638502,-352.44139576,0.00013273,2]
[400114367,1767132638512,-500.0,0.00013273,2]
[400114369,1767132638522,-500.51187945,0.00013273,2]
[400114371,1767132638531,-500.0,0.00013273,2]
[400114373,1767132638540,-500.0,0.00013273,2]
[400114375,1767132638551,-500.0,0.00013273,2]
[400114377,1767132638560,-500.0,0.00013273,2]
[400114379,1767132638569,-500.0,0.00013273,2]
[400114381,1767132638580,-500.0,0.00013273,2]
[400114383,1767132638589,-605.28720895,0.00013273,2]
[400114385,1767132638599,-500.0,0.00013273,2]
[400114387,1767132638608,-500.0,0.00013273,2]
[400114389,1767132638617,-500.0,0.00013273,2]
[400114391,1767132638627,-500.0,0.00013273,2]
[400114393,1767132638636,-500.26362116,0.00013273,2]
[400114395,1767132638646,-500.0,0.00013273,2]
[400114397,1767132638655,-500.0,0.00013273,2]
[400114399,1767132638665,-500.0,0.00013273,2]
[400114401,1767132638675,-465.37686128,0.00013273,2]
[400114403,1767132638684,-500.0,0.00013273,2]
[400114405,1767132638693,-500.0,0.00013273,2]
[400114407,1767132638703,-500.0,0.00013273,2]
[400114409,1767132638712,-500.0,0.00013273,2]
[400114411,1767132638722,-500.0,0.00013273,2]
[400114413,1767132638731,-500.0,0.00013273,2]
[400114415,1767132638740,-500.0,0.00013273,2]
[400114417,1767132638750,-500.0,0.00013273,2]
[400114419,1767132638759,-500.0,0.00013273,2]
[400114421,1767132638769,-500.0,0.00013273,2]
[400114423,1767132638779,-500.0,0.00013273,2]
[400114425,1767132638788,-500.0,0.00013273,2]
[400114427,1767132638797,-500.0,0.00013273,2]
[400114429,1767132638806,-171.46724049,0.00013273,2]
[400114431,1767132638815,-268.5150951,0.00013273,2]
[400114433,1767132638824,-500.0,0.00013273,2]
[400114435,1767132638834,-500.0,0.00013273,2]
[400114437,1767132638843,-500.0,0.00013273,2]
[400114439,1767132638852,-535.90784509,0.00013273,2]
[400114441,1767132638862,-500.0,0.00013273,2]
[400114443,1767132638871,-159.20798876,0.00013273,2]
[400114445,1767132638880,-500.0,0.00013273,2]
[400114447,1767132638890,-500.81406623,0.00013273,2]
[400114449,1767132638900,-500.0,0.00013273,2]
[400114451,1767132638909,-500.0,0.00013273,2]
[400114453,1767132638919,-500.0,0.00013273,2]
[400114455,1767132638928,-330.83728204,0.00013273,2]
[400114457,1767132638939,-500.0,0.00013273,2]
[400114459,1767132638948,-158.33685068,0.00013273,2]
[400114461,1767132638957,-500.0,0.00013273,2]
[400114463,1767132638967,-500.0,0.00013273,2]
[400114465,1767132638976,-500.41782704,0.00013273,2]
[400114466,1767132638985,-500.0,0.00013273,2]
[400114468,1767132638995,-500.0,0.00013273,2]
[400114470,1767132639005,-270.09084155,0.00013273,2]
[400114472,1767132639014,-500.0,0.00013273,2]
[400114474,1767132639024,-500.0,0.00013273,2]
[400114476,1767132639033,-500.0,0.00013273,2]
[400114478,1767132639043,-185.30799155,0.00013273,2]
[400114480,1767132639052,-500.0,0.00013273,2]
[400114482,1767132639062,-500.0,0.00013273,2]
[400114484,1767132639071,-500.0,0.00013273,2]
[400114486,1767132639081,-500.0,0.00013273,2]
[400114488,1767132639091,-210.52500245,0.00013273,2]
[400114490,1767132639100,-500.0,0.00013273,2]
[400114492,1767132639109,-500.0,0.00013273,2]
[400114494,1767132639118,-500.0,0.00013273,2]
[400114496,1767132639128,-152.91,0.00013273,2]
[400114498,1767132639137,-2621.34456173,0.000134,2]
[400114500,1767132639147,-152.38386934,0.0001349,2]
[400114502,1767132639156,-151.0,0.0001349,2]
[400114504,1767132639165,-151.0,0.0001349,2]
[400114505,1767132639174,-151.0,0.0001349,2]
[400114507,1767132639184,-151.0,0.0001349,2]
[400114510,1767132639204,-151.0,0.0001349,2]
[400114511,1767132639214,-151.0,0.0001349,2]
[400114513,1767132639223,-151.0,0.0001349,2]
[400114515,1767132639233,-151.0,0.000135,2]
[400114517,1767132639243,-151.0,0.000135,2]
[400114519,1767132639252,-151.0,0.000135,2]
[400114521,1767132639262,-151.0,0.000135,2]
[400114523,1767132639271,-151.0,0.000135,2]
[400114525,1767132639282,-151.0,0.000135,2]
[400114527,1767132639291,-151.0,0.000135,2]
[400114529,1767132639301,-151.0,0.000135,2]
[400114531,1767132639311,-151.0,0.000135,2]
[400114533,1767132639320,-151.0,0.000135,2]
[400114535,1767132639330,-151.0,0.000135,2]
[400114537,1767132639339,-151.0,0.000135,2]
[400114539,1767132639349,-151.0,0.000135,2]
[400114540,1767132639358,-151.0,0.000135,2]
[400114542,1767132639367,-151.0,0.000135,2]
[400114544,1767132639376,-10000.0,0.0001354,2]
[400114546,1767132639386,-500.0,0.00013547,2]
[400114548,1767132639396,-1108.44,0.00013637,2]
[400114550,1767132639405,-300.0,0.00013673,2]
[400114552,1767132639415,-500.0,0.00013698,2]
[400114554,1767132639424,-500.0,0.00013698,2]
[400114556,1767132639433,-500.0,0.00013698,2]
[400114558,1767132639443,-500.0,0.00013698,2]
[400114559,1767132639452,-500.0,0.00013698,2]
[400114561,1767132639462,-500.0,0.00013698,2]
[400114563,1767132639471,-500.0,0.00013698,2]
[400114565,1767132639480,-500.0,0.00013698,2]
[400114567,1767132639490,-500.0,0.00013698,2]
[400114569,1767132639501,-500.0,0.00013698,2]
[400114574,1767132639617,-500.0,0.00013698,2]
[400114575,1767132639627,-500.0,0.00013698,2]
[400114576,1767132639637,-500.0,0.00013698,2]
[400114577,1767132639646,-500.0,0.00013698,2]
[400114578,1767132639655,-500.0,0.00013698,2]
[400114579,1767132639665,-509.74606026,0.00013698,2]
[400114580,1767132639675,-500.0,0.00013698,2]
[400114581,1767132639685,-175.88826675,0.00013698,2]
[400114582,1767132639694,-458.51216997,0.00013698,2]
[400114583,1767132639703,-308.96684295,0.00013698,2]
[400114584,1767132639712,-1357.88,0.00013698,2]
[400114585,1767132639722,-1357.88,0.00013698,2]
[400114586,1767132639731,-1357.88,0.00013698,2]
[400114587,1767132639740,-1357.88,0.00013698,2]
[400114588,1767132639749,-1357.88,0.00013698,2]
[400114589,1767132639759,-1357.88,0.00013698,2]
[400114591,1767132639768,-1357.88,0.00013698,2]
[400114592,1767132639777,-1357.88,0.00013698,2]
[400114594,1767132639787,-1357.88,0.00013698,2]
[400114596,1767132639796,-1357.88,0.00013698,2]
[400114598,1767132639805,-1357.88,0.00013698,2]
[400114600,1767132639815,-1357.88,0.00013698,2]
[400114602,1767132639824,-1357.88,0.00013698,2]
[400114604,1767132639833,-1357.88,0.00013698,2]
[400114606,1767132639843,-1357.88,0.00013698,2]
[400114607,1767132639853,-1357.88,0.00013698,2]
[400114609,1767132639863,-1357.88,0.00013698,2]
[400114611,1767132639872,-1357.88,0.00013698,2]
[400114613,1767132639881,-1357.88,0.00013698,2]
[400114615,1767132639891,-1357.88,0.00013698,2]
[400114617,1767132639900,-1357.88,0.00013698,2]
[400114618,1767132639909,-1357.88,0.00013698,2]
[400114620,1767132639918,-1357.88,0.00013698,2]
[400114622,1767132639927,-1357.94099999,0.00013698,2]
[400114624,1767132639937,-844.94,0.00013698,2]
[400114626,1767132639947,-844.94,0.00013698,2]
[400114628,1767132639956,-844.94,0.00013698,2]
[400114630,1767132639965,-844.94,0.00013698,2]
[400114632,1767132639974,-844.94,0.00013698,2]
[400114633,1767132639983,-844.94,0.00013698,2]
[400114635,1767132639992,-844.94,0.00013698,2]
[400114637,1767132640002,-844.94,0.00013698,2]
[400114639,1767132640012,-844.94,0.00013698,2]
[400114641,1767132640021,-844.94,0.00013698,2]
[400114643,1767132640030,-844.94,0.00013698,2]
[400114645,1767132640039,-844.94,0.00013698,2]
[400114647,1767132640048,-844.94,0.00013698,2]
[400114649,1767132640057,-844.94,0.00013698,2]
[400114651,1767132640067,-844.94,0.00013698,2]
[400114653,1767132640075,-844.94,0.00013698,2]
[400114654,1767132640084,-844.94,0.00013698,2]
[400114656,1767132640094,-844.94,0.00013698,2]
[400114658,1767132640103,-844.94,0.00013698,2]
[400114660,1767132640112,-844.94,0.00013698,2]
[400114662,1767132640121,-844.94,0.00013698,2]
[400114664,1767132640130,-844.94,0.00013698,2]
[400114666,1767132640139,-844.94,0.00013698,2]
[400114668,1767132640148,-845.00999918,0.00013698,2]
[400114670,1767132640158,-500.0,0.00013698,2]
[400114672,1767132640167,-500.0,0.00013698,2]
[400114673,1767132640176,-500.0,0.00013698,2]
[400114675,1767132640185,-501.25655426,0.00013698,2]
[400114677,1767132640195,-462.39716455,0.00013698,2]
[400114679,1767132640204,-500.0,0.00013698,2]
[400114681,1767132640213,-500.0,0.00013698,2]
[400114683,1767132640222,-500.0,0.00013698,2]
[400114685,1767132640231,-500.0,0.00013698,2]
[400114687,1767132640240,-500.0,0.00013698,2]
[400114688,1767132640250,-230.05403968,0.00013698,2]
[400114690,1767132640261,-1000.0,0.00013699,2]
[400114692,1767132640270,-883.431964,0.00013699,2]
[400114694,1767132640279,-2648.1552801,0.00013699,2]
[400114696,1767132640289,-500.0,0.00013699,2]
[400114698,1767132640299,-625.29416392,0.00013699,2]
[400114700,1767132640308,-500.0,0.00013699,2]
[400114702,1767132640317,-500.0,0.00013699,2]
[400114704,1767132640326,-303.89032642,0.00013699,2]
[400114706,1767132640336,-500.0,0.00013699,2]
[400114708,1767132640345,-500.83485373,0.00013699,2]
[400114710,1767132640354,-500.75693434,0.00013699,2]
[400114711,1767132640363,-500.64819695,0.00013699,2]
[400114713,1767132640373,-500.88904655,0.00013699,2]
[400114715,1767132640382,-500.6174752,0.00013699,2]
[400114717,1767132640392,-501.93897329,0.00013699,2]
[400114719,1767132640402,-500.0,0.00013699,2]
[400114721,1767132640410,-346.40609212,0.00013699,2]
[400114723,1767132640420,-500.0,0.00013699,2]
[400114725,1767132640429,-500.0,0.00013699,2]
[400114727,1767132640438,-500.71209724,0.00013699,2]
[400114729,1767132640448,-500.0,0.00013699,2]
[400114731,1767132640457,-199.17509782,0.00013699,2]
[400114733,1767132640467,-159.65835704,0.00013699,2]
[400114735,1767132640476,-500.0,0.00013699,2]
[400114737,1767132640486,-158.36952314,0.00013699,2]
[400114739,1767132640496,-500.0,0.00013699,2]
[400114741,1767132640512,-500.0,0.00013699,2]
[400114743,1767132640521,-500.0,0.00013699,2]
[400114745,1767132640530,-500.0,0.00013699,2]
[400114747,1767132640540,-165.01125145,0.00013699,2]
[400114749,1767132640550,-500.0,0.00013699,2]
[400114750,1767132640559,-500.0,0.00013699,2]
[400114752,1767132640568,-500.0,0.00013699,2]
[400114754,1767132640579,-501.12401545,0.00013699,2]
[400114756,1767132640587,-500.0,0.00013699,2]
[400114758,1767132640596,-500.0,0.00013699,2]
[400114760,1767132640605,-500.0,0.00013699,2]
[400114762,1767132640617,-500.0,0.00013699,2]
[400114764,1767132640625,-500.0,0.00013699,2]
[400114765,1767132640635,-501.0984306,0.00013699,2]
[400114767,1767132640644,-318.65909539,0.00013699,2]
[400114769,1767132640653,-525.6894208,0.00013699,2]
[400114771,1767132640663,-501.25603752,0.00013699,2]
[400114773,1767132640673,-500.40184004,0.00013699,2]
[400114775,1767132640682,-178.05611583,0.00013699,2]
[400114777,1767132640692,-365.77699845,0.00013699,2]
[400114779,1767132640702,-307.55036025,0.00013699,2]
[400114781,1767132640711,-500.0,0.00013699,2]
[400114783,1767132640721,-501.38886303,0.00013699,2]
[400114785,1767132640730,-501.74110705,0.00013699,2]
[400114787,1767132640740,-157.57068447,0.00013699,2]
[400114789,1767132640750,-500.0,0.00013699,2]
[400114791,1767132640761,-500.0,0.00013699,2]
[400114793,1767132640770,-500.86097869,0.00013699,2]
[400114794,1767132640779,-500.0,0.00013699,2]
[400114796,1767132640788,-343.55118679,0.00013699,2]
[400114798,1767132640798,-501.01146008,0.00013699,2]
[400114800,1767132640808,-500.35999575,0.00013699,2]
[400114802,1767132640817,-500.0,0.00013699,2]
[400114804,1767132640827,-500.0,0.00013699,2]
[400114806,1767132640836,-500.79867344,0.00013699,2]
[400114808,1767132640846,-500.83766924,0.00013699,2]
[400114810,1767132640856,-500.0,0.00013699,2]
[400114812,1767132640865,-500.0,0.00013699,2]
[400114814,1767132640874,-500.0,0.00013699,2]